bitfinex/quotes_ETHUSD_20241129
["timestamp","ask_amount","ask_price","bid_price","bid_amount"]
[1732901696188,2.78003,3597.1,3596.5,2.78047]
[1732901697991,3.81953,3597.3,3596.5,2.78047]
[1732901698145,0.5675151,3597.2,3597.1,2.78001]
[1732901698484,1.0396,3597.8,3596.9,4.1456]
[1732901698853,2.77961,3597.7,3597.0,2.78009]
[1732901699094,3.81908,3597.8,3597.0,2.78009]
[1732901699385,3.81908,3597.8,3597.2,2.77987]
[1732901699594,2.77959,3597.7,3597.0,2.78009]
[1732901699778,2.77959,3597.7,3597.1,2.78]
[1732901700179,2.77959,3597.7,3597.2,2.77993]
[1732901700384,0.55042554,3597.4,3597.3,2.77986]
[1732901700590,0.55042554,3597.4,3597.2,0.692552]
[1732901701263,0.55042554,3597.4,3597.1,2.78001]
[1732901701462,0.55042554,3597.4,3597.2,2.77987]
[1732901702310,0.55042554,3597.4,3596.8,2.78022]
[1732901702467,0.55042554,3597.4,3596.4,0.2778]
[1732901702468,2.78007,3597.1,3596.6,0.51851567]
[1732901702825,2.78007,3597.1,3596.5,2.78043]
[1732901703099,3.81997,3596.7,3596.1,2.78072]
[1732901703303,2.78052,3596.5,3595.9,2.78092]
[1732901703511,3.81997,3596.7,3596.0,2.78085]
[1732901703804,1.0396,3596.7,3596.1,2.78073]
[1732901704111,1.0396,3596.7,3595.6,1.3684]
[1732901704112,2.7804,3596.6,3596.0,2.78081]
[1732901704711,2.7804,3596.6,3595.6,1.3684]
[1732901704712,0.89,3595.6,3594.3,0.29018029]
[1732901704892,2.7821,3594.4,3592.8,2.7833]
[1732901705092,3.0,3594.6,3593.4,2.7828]
[1732901705279,0.56752817,3594.0,3593.5,0.51896012]
[1732901705627,0.56752817,3594.0,3593.1,3.53999998]
[1732901705628,0.56424605,3594.7,3593.8,2.78641314]
[1732901705765,4.0396,3595.9,3594.8,2.78176]
[1732901705970,2.78111,3595.7,3594.6,1.3604]
[1732901706177,1.0396,3595.9,3594.6,1.3604]
[1732901706178,2.78126,3595.5,3594.6,1.3604]
[1732901706490,2.78126,3595.5,3594.6,4.14234]
[1732901706491,2.78133,3595.5,3594.6,4.14234]
[1732901706679,0.56485797,3595.3,3594.6,4.14234]
[1732901707311,0.56485797,3595.3,3594.6,1.3604]
[1732901707479,0.56485797,3595.3,3594.8,2.78179]
[1732901707666,0.56485797,3595.3,3594.7,2.78187]
[1732901707872,0.56485797,3595.3,3594.6,4.14232]
[1732901708065,0.56485797,3595.3,3594.7,0.51777579]
[1732901708269,0.56485797,3595.3,3594.7,2.78186]
[1732901708515,0.56485797,3595.3,3594.8,0.51757505]
[1732901708692,0.56485797,3595.3,3594.8,2.78179]
[1732901709015,0.56485797,3595.3,3594.6,1.3604]
[1732901709016,0.56485797,3595.3,3594.7,0.55]
[1732901709313,0.56485797,3595.3,3594.9,2.78166]
[1732901709472,0.56485797,3595.3,3595.0,2.78163]
[1732901710273,0.56485797,3595.3,3595.1,2.78155]
[1732901710819,0.56485797,3595.3,3595.2,2.78148]
[1732901712231,0.56485797,3595.3,3595.0,2.78162]
[1732901712740,5.78053,3596.5,3595.0,2.78162]
[1732901712741,0.54996701,3595.7,3595.6,2.78117]
[1732901713024,0.54996701,3595.7,3595.4,2.78132]
[1732901713833,0.54996701,3595.7,3595.1,2.78156]
[1732901714131,0.54996701,3595.7,3595.1,2.78152]
[1732901716713,0.55569931,3595.1,3594.6,2.7819]
[1732901716911,0.55569931,3595.1,3594.7,2.78181]
[1732901717104,0.55569931,3595.1,3594.9,2.7817]
[1732901717630,0.55569931,3595.1,3594.2,4.09353]
[1732901717631,0.55569931,3595.1,3595.0,2.78164]
[1732901718538,0.55569931,3595.1,3594.6,2.78189]
[1732901718730,0.55569931,3595.1,3594.7,0.51641745]
[1732901718903,0.55569931,3595.1,3594.6,2.78189]
[1732901719346,0.55569931,3595.1,3594.7,2.78186]
[1732901719919,0.55569931,3595.1,3594.5,2.78196]
[1732901720120,4.37709931,3595.1,3594.5,2.78196]
[1732901720443,1.59549931,3595.1,3594.5,2.78196]
[1732901720753,1.59549931,3595.1,3594.3,2.78216]
[1732901720754,2.78172,3594.9,3594.3,2.78216]
[1732901720904,1.59549931,3595.1,3594.4,3.298607]
[1732901721123,2.78177,3594.9,3594.2,2.78223]
[1732901721307,2.78181,3594.8,3594.3,0.51656803]
[1732901721549,2.78181,3594.8,3594.2,2.78223]
[1732901721850,2.78172,3594.9,3594.3,3.2987236]
[1732901722017,2.78172,3594.9,3594.4,0.5165636]
[1732901722344,4.37712931,3595.1,3593.9,1.2589]
[1732901722546,1.59549931,3595.1,3594.2,2.7822]
[1732901722854,2.78188,3594.7,3594.1,2.78232]
[1732901723009,2.78188,3594.7,3593.8,2.78256]
[1732901723010,0.56075494,3594.5,3593.8,2.78256]
[1732901723343,0.56075494,3594.5,3594.0,2.78236]
[1732901723555,0.56075494,3594.5,3594.1,3.29921674]
[1732901723710,0.56075494,3594.5,3594.2,2.78219]
[1732901724546,0.56075494,3594.5,3593.7,2.78264]
[1732901724716,0.56075494,3594.5,3593.5,1.2673]
[1732901724717,0.56075494,3594.5,3594.0,2.78239]
[1732901725335,0.56075494,3594.5,3594.1,0.51729762]
[1732901725649,0.56075494,3594.5,3594.0,2.78239]
[1732901726238,0.56075494,3594.5,3594.1,0.5175748]
[1732901726430,0.56075494,3594.5,3594.0,2.78239]
[1732901726612,0.56075494,3594.5,3593.5,1.2673]
[1732901726613,0.56075494,3594.5,3593.6,0.55]
[1732901726839,0.56075494,3594.5,3593.7,2.78264]
[1732901727148,0.56075494,3594.5,3594.3,2.78215]
[1732901727308,0.56075494,3594.5,3594.4,2.7821]
[1732901727829,3.82109,3595.5,3594.8,2.78177]
[1732901728236,2.78135,3595.4,3594.8,2.78177]
[1732901728438,1.0398,3595.5,3594.3,2.78211]
[1732901728743,1.0398,3595.9,3594.4,3.29990062]
[1732901729065,3.32544877,3594.9,3594.2,5.56445]
[1732901729346,3.32544877,3594.9,3594.3,3.29999782]
[1732901729549,0.54372877,3594.9,3594.4,3.29995782]
[1732901729717,0.54372877,3594.9,3594.5,0.51786782]
[1732901730113,0.54372877,3594.9,3594.6,0.51826005]
[1732901730314,0.54372877,3594.9,3594.6,2.78194]
[1732901730609,0.54372877,3594.9,3594.5,2.78195]
[1732901731053,0.54372877,3594.9,3594.6,2.78194]
[1732901731220,0.54372877,3594.9,3594.8,2.78179]
[1732901732050,0.60686919,3594.9,3594.8,2.78179]
[1732901732730,0.54372877,3594.9,3594.8,2.78179]
[1732901733792,1.0398,3595.8,3595.4,2.78132]
[1732901733993,2.78065,3596.3,3595.7,2.78109]
[1732901734219,2.78065,3596.3,3595.8,2.78101]
[1732901734409,1.0398,3596.4,3594.8,0.834555]
[1732901734600,1.0398,3596.4,3594.4,2.78641314]
[1732901734601,2.78087,3596.0,3595.3,2.78133]
[1732901734777,2.78087,3596.0,3594.7,1.3454]
[1732901734778,1.0398,3595.8,3594.7,1.3454]
[1732901734976,3.82082,3595.8,3595.2,2.78142]
[1732901735484,3.0,3595.7,3595.2,2.78142]
[1732901736408,0.06203303,3595.6,3595.2,2.78142]
[1732901736697,0.06203303,3595.6,3595.0,2.78162]
[1732901737015,0.06203303,3595.6,3594.8,3.36422952]
[1732901737154,0.06203303,3595.6,3595.5,2.78125]
[1732901737358,0.56002716,3595.9,3595.3,2.78134]
[1732901737657,0.06149092,3595.8,3595.5,2.78118]
[1732901739198,0.06149092,3595.8,3595.1,2.78153]
[1732901739648,0.06149092,3595.8,3595.3,2.7814]
[1732901739847,2.84252092,3595.8,3595.1,2.78153]
[1732901740289,0.06149092,3595.8,3594.8,0.55]
[1732901740487,0.06149092,3595.8,3595.1,2.78149]
[1732901740488,2.84256092,3595.8,3595.1,2.78149]
[1732901740696,2.78113,3595.7,3595.0,2.78157]
[1732901740877,2.78113,3595.7,3595.1,2.78155]
[1732901741080,0.06205426,3595.6,3595.2,2.78145]
[1732901741393,3.34101716,3595.9,3595.2,2.78145]
[1732901741592,0.06182965,3595.5,3595.2,2.78145]
[1732901741771,2.78104,3595.8,3595.2,2.78145]
[1732901742093,0.06177505,3595.4,3595.2,2.78145]
[1732901742392,0.06099683,3595.3,3595.2,2.78145]
[1732901742820,3.34096716,3595.9,3595.2,2.78145]
[1732901743099,0.56002716,3595.9,3595.5,2.78124]
[1732901743301,6.82052,3596.2,3595.3,2.78138]
[1732901743452,4.0398,3596.2,3595.3,2.78138]
[1732901743653,0.06156779,3596.1,3595.6,2.78112]
[1732901744702,0.55735497,3595.7,3595.6,2.78112]
[1732901744883,0.55735497,3595.7,3595.3,2.78139]
[1732901745194,0.55735497,3595.7,3594.8,0.55]
[1732901745195,1.10128122,3595.6,3595.1,2.78149]
[1732901745558,1.10128122,3595.6,3595.0,2.7816]
[1732901746194,1.10128122,3595.6,3595.1,2.78154]
[1732901746700,1.10128122,3595.6,3594.9,2.78168]
[1732901747260,0.1981,3595.5,3594.9,2.78168]
[1732901747564,3.0,3595.4,3594.8,2.78178]
[1732901747775,0.06130265,3595.3,3594.8,2.78178]
[1732901748458,0.06130265,3595.3,3594.8,2.78641314]
[1732901748654,0.06130265,3595.3,3595.2,3.86558]
[1732901748957,2.78046,3596.6,3595.7,2.78108]
[1732901748958,0.1981,3596.1,3595.7,2.78108]
[1732901749158,4.0,3595.8,3595.7,2.78108]
[1732901749363,0.1981,3596.1,3595.7,2.78108]
[1732901749566,0.55195672,3595.8,3595.7,2.78108]
[1732901749903,0.55195672,3595.8,3595.3,2.7814]
[1732901750265,0.55195672,3595.8,3594.4,2.78641314]
[1732901750266,0.1981,3595.4,3594.6,1.0323]
[1732901750467,0.1981,3595.4,3594.8,2.78179]
[1732901750681,0.1981,3595.4,3594.6,1.0323]
[1732901750874,0.06127659,3595.3,3594.8,2.78179]
[1732901751159,0.06127659,3595.3,3594.6,2.78194]
[1732901751391,0.06127659,3595.3,3594.8,2.78179]
[1732901751893,0.06127659,3595.3,3594.4,5.5642]
[1732901752100,0.06127659,3595.3,3594.9,2.78171]
[1732901752300,0.06127659,3595.3,3594.8,2.78176]
[1732901752499,0.56334109,3595.0,3594.9,2.78171]
[1732901752920,0.62445381,3595.0,3594.7,2.78184]
[1732901753102,0.62445381,3595.0,3594.6,2.78194]
[1732901753401,0.1981,3594.9,3593.8,3.82325]
[1732901753557,0.1981,3594.9,3593.6,2.78271]
[1732901753764,0.1981,3594.2,3593.6,2.78271]
[1732901753993,0.06083603,3594.1,3593.6,2.78271]
[1732901754196,0.06083603,3594.1,3593.7,2.78262]
[1732901754405,0.06083603,3594.1,3593.7,2.78263]
[1732901754965,2.98036,3594.2,3593.7,2.78263]
[1732901754966,2.69136527,3594.2,3593.7,3.0425869]
[1732901755287,0.05872442,3594.0,3593.8,0.2599569]
[1732901755472,0.0587578,3594.1,3593.2,2.78297]
[1732901755805,2.78249,3593.9,3593.3,2.78288]
[1732901756170,0.05856031,3593.8,3593.3,2.78288]
[1732901756880,0.56612329,3593.4,3593.3,2.78288]
[1732901757190,0.62426142,3593.4,3593.3,2.78288]
[1732901757968,0.62426142,3593.4,3592.6,2.78349]
[1732901758169,3.40714142,3593.4,3592.7,2.78336]
[1732901758693,0.62426142,3593.4,3592.9,2.78326]
[1732901758867,0.62426142,3593.4,3592.9,0.278326]
[1732901759066,3.40714142,3593.4,3592.7,2.7834]
[1732901759272,0.62426142,3593.4,3592.7,2.7834]
[1732901759468,0.62426142,3593.4,3592.8,2.78333]
[1732901759970,0.56612329,3593.4,3592.8,2.78333]
[1732901760311,0.05823319,3593.3,3592.5,3.85845]
[1732901760465,0.05823319,3593.3,3592.6,2.78349]
[1732901760466,2.84124319,3593.3,3592.6,2.78349]
[1732901760900,2.78303,3593.2,3592.6,2.78349]
[1732901761211,0.05810763,3593.1,3592.6,2.78349]
[1732901761514,0.05810763,3593.1,3592.7,2.78341]
[1732901761907,0.56612329,3593.4,3592.6,2.78348]
[1732901761908,2.78303,3593.2,3592.6,2.78348]
[1732901762198,0.05808416,3593.1,3592.6,2.78348]
[1732901762582,0.05808416,3593.1,3592.5,1.0749]
[1732901762783,0.05808416,3593.1,3592.3,2.78371]
[1732901762784,2.78317,3593.1,3592.1,2.78386]
[1732901763009,2.84092675,3593.0,3592.2,3.225986]
[1732901763216,2.78332,3592.9,3591.9,1.0887]
[1732901763513,0.05770592,3592.9,3592.2,2.78377]
[1732901764076,0.05770592,3592.9,3592.2,5.56752]
[1732901764300,0.05770592,3592.9,3592.8,2.78334]
[1732901764501,0.05770592,3592.9,3592.8,3.87204]
[1732901764809,3.0,3593.5,3592.9,2.78321]
[1732901765216,0.05652275,3593.4,3593.0,2.78313]
[1732901765429,0.05652275,3593.4,3592.9,2.78326]
[1732901765600,3.1,3594.7,3593.1,2.78306]
[1732901765601,3.0,3593.6,3593.1,2.78306]
[1732901765811,0.05678728,3593.3,3593.1,2.78306]
[1732901765971,3.0,3593.6,3593.1,2.78306]
[1732901766172,0.05689661,3593.5,3593.1,2.78306]
[1732901766410,0.54975717,3593.2,3593.1,2.78306]
[1732901766619,0.05688449,3593.4,3593.1,3.448562]
[1732901766776,0.05653507,3593.2,3593.0,2.78312]
[1732901767292,0.55148369,3593.4,3592.8,2.7833]
[1732901767621,0.55148369,3593.4,3592.2,3.45203514]
[1732901767622,2.78324,3593.0,3592.2,2.7838]
[1732901767769,2.78324,3593.0,3592.3,2.78372]
[1732901767972,0.05656285,3592.9,3592.3,2.78372]
[1732901768199,0.05656285,3592.9,3592.1,2.78387]
[1732901768418,0.05656285,3592.9,3592.4,2.78363]
[1732901768616,2.83983285,3592.9,3592.2,3.162257]
[1732901768827,2.78327,3592.9,3592.3,2.78372]
[1732901769026,0.0563112,3592.8,3592.4,2.78358]
[1732901769195,2.78312,3593.1,3592.4,2.78358]
[1732901769396,0.05628888,3593.0,3592.6,2.78349]
[1732901769599,0.55148369,3593.4,3592.6,2.78349]
[1732901769600,5.78291,3593.4,3592.7,2.78339]
[1732901769777,5.78291,3593.4,3592.8,2.78327]
[1732901769982,0.05662823,3593.3,3592.6,4.06626214]
[1732901770319,5.78265,3593.7,3593.1,2.78303]
[1732901770479,0.05674377,3593.2,3593.1,2.78303]
[1732901770680,5.78265,3593.7,3593.1,2.78303]
[1732901770876,0.60946875,3593.2,3593.1,2.78303]
[1732901771185,0.60970993,3593.2,3593.1,2.78303]
[1732901771854,0.0567225,3593.2,3593.1,2.78303]
[1732901772049,0.0567225,3593.2,3593.1,3.339659]
[1732901772563,3.0,3593.9,3593.3,2.7829]
[1732901772766,5.7825,3593.9,3593.3,2.7829]
[1732901772988,3.22717031,3595.2,3592.6,4.06626214]
[1732901772989,0.55336804,3593.4,3592.8,2.78333]
[1732901773115,0.55336804,3593.4,3592.6,1.0015]
[1732901773433,2.78213,3594.4,3593.3,1.0145]
[1732901773614,2.78213,3594.4,3593.9,2.78249]
[1732901773813,0.56422822,3594.0,3593.3,1.67289531]
[1732901774422,0.56422822,3594.0,3593.6,2.78266]
[1732901774822,0.56422822,3594.0,3593.9,2.78249]
[1732901775748,0.56422822,3594.0,3593.7,2.78258]
[1732901775937,0.56422822,3594.0,3593.3,1.67289531]
[1732901775938,0.56422822,3594.0,3593.9,2.78249]
[1732901777122,2.78161,3595.1,3594.5,2.78197]
[1732901777323,2.78158,3595.1,3594.4,2.78207]
[1732901777565,0.30017031,3596.3,3594.0,1.0519]
[1732901777566,2.78142,3595.3,3594.0,1.0519]
[1732901777772,2.78158,3595.1,3594.4,2.78207]
[1732901778857,2.78158,3595.1,3594.5,2.782]
[1732901779064,3.0,3595.2,3594.6,2.78193]
[1732901779264,3.0,3595.4,3594.7,2.78187]
[1732901779491,3.0,3595.9,3594.7,2.78187]
[1732901779647,2.92202911,3596.0,3594.6,1.0769]
[1732901779648,0.55758904,3595.0,3594.8,2.78173]
[1732901779986,2.78154,3595.2,3594.4,2.78205]
[1732901780182,2.78166,3595.0,3594.3,3.79866]
[1732901780483,2.78161,3595.1,3594.3,1.0165]
[1732901780648,0.05388333,3595.3,3594.3,1.0165]
[1732901780649,2.78172,3594.9,3594.3,1.0165]
[1732901780993,2.78181,3594.8,3594.2,2.78225]
[1732901781282,2.78164,3595.0,3594.0,3.88079]
[1732901781488,2.78164,3595.0,3594.1,3.33232]
[1732901782078,2.78191,3594.7,3594.1,3.33232]
[1732901782289,2.78184,3594.8,3594.3,2.78217]
[1732901782454,0.54562003,3594.9,3594.3,2.78217]
[1732901782660,3.32740003,3594.9,3594.3,2.78217]
[1732901783456,0.05378361,3594.8,3594.3,2.78217]
[1732901783655,2.78189,3594.7,3594.1,3.33227]
[1732901783883,0.05378361,3594.8,3594.3,2.78217]
[1732901784081,0.05375942,3594.6,3594.3,2.78217]
[1732901784294,0.05388333,3595.3,3594.9,2.78165]
[1732901784507,0.05388333,3595.3,3594.7,2.78187]
[1732901784643,0.55909213,3595.1,3594.6,1.0084]
[1732901784846,2.78165,3595.0,3594.4,2.78208]
[1732901785083,0.55909213,3595.1,3594.3,1.1025]
[1732901785084,2.78171,3594.9,3594.3,1.1025]
[1732901785267,2.78171,3594.9,3594.3,2.78216]
[1732901785658,2.78171,3594.9,3594.2,2.78219]
[1732901786096,2.78171,3594.9,3594.3,2.78217]
[1732901786597,0.55909213,3595.1,3594.0,1.1025]
[1732901786784,0.55909213,3595.1,3593.5,3.53215017]
[1732901786785,2.7822,3594.3,3593.5,1.0759]
[1732901786981,2.83544695,3594.2,3593.5,3.8587]
[1732901787295,2.83544695,3594.2,3593.6,2.78272]
[1732901787483,0.05317695,3594.2,3593.5,1.0759]
[1732901787684,2.78219,3594.3,3593.7,2.78262]
[1732901787884,0.05326446,3594.1,3593.6,2.78272]
[1732901788104,0.05331911,3594.2,3593.7,2.78264]
[1732901788296,0.05320981,3594.0,3593.7,2.78264]
[1732901788451,0.05323073,3594.1,3593.7,2.78264]
[1732901788657,5.78218,3594.3,3593.7,2.78264]
[1732901788878,0.05264055,3594.0,3593.7,2.78264]
[1732901789295,2.78229,3594.2,3593.4,2.78285]
[1732901789597,2.78247,3594.0,3593.2,3.84461]
[1732901789751,0.05237312,3593.9,3593.2,4.229071]
[1732901790396,0.05237312,3593.9,3593.4,2.78283]
[1732901790864,0.05237312,3593.9,3593.2,3.84461]
[1732901791068,2.78247,3594.0,3593.2,3.84461]
[1732901791274,2.78259,3593.8,3593.2,3.84461]
[1732901791592,2.78282,3593.5,3592.8,1.0727]
[1732901791756,0.56937658,3593.3,3592.8,3.85598]
[1732901791951,0.56937658,3593.3,3592.8,4.519933]
[1732901792158,0.05199389,3593.2,3592.8,4.519933]
[1732901792555,0.56937658,3593.3,3592.8,4.519933]
[1732901792770,0.0520167,3593.1,3592.8,4.519933]
[1732901792979,0.05207138,3593.2,3592.8,4.519933]
[1732901793290,0.05194073,3593.0,3592.8,3.85598]
[1732901793452,0.56937658,3593.3,3592.8,3.85598]
[1732901793658,0.05186475,3592.9,3592.8,4.40598]
[1732901793882,0.56937658,3593.3,3592.8,4.40598]
[1732901793883,0.56937658,3593.3,3592.9,2.78325]
[1732901794603,0.56937658,3593.3,3592.7,3.33339]
[1732901794811,0.56937658,3593.3,3592.8,2.78331]
[1732901795104,0.56937658,3593.3,3592.9,2.78323]
[1732901795890,0.56937658,3593.3,3592.7,1.1482741]
[1732901795891,3.35234658,3593.3,3592.7,3.9316341]
[1732901796091,2.78303,3593.2,3592.6,0.55]
[1732901796813,0.56937658,3593.3,3592.7,2.78337]
[1732901797007,3.35239658,3593.3,3592.6,3.33344]
[1732901797402,3.35239658,3593.3,3592.7,2.78339]
[1732901797787,0.05190668,3593.2,3592.6,0.55]
[1732901797988,2.83493668,3593.2,3592.6,0.55]
[1732901798488,0.05190668,3593.2,3592.6,0.55]
[1732901798821,2.78311,3593.1,3592.3,2.78367]
[1732901798971,2.78326,3592.9,3592.1,3.80577]
[1732901799169,0.05166661,3593.0,3592.2,2.78373]
[1732901799420,2.83512941,3592.8,3592.2,2.78373]
[1732901799719,0.0517568,3592.7,3592.2,2.78373]
[1732901800018,0.0517568,3592.7,3592.3,2.78372]
[1732901800516,0.05165952,3592.6,3592.3,2.78372]
[1732901800972,2.78336,3592.8,3592.1,3.80572]
[1732901801176,0.56937658,3593.3,3591.8,2.78408]
[1732901801177,2.83522482,3592.5,3591.8,2.78408]
[1732901801375,2.78362,3592.5,3591.9,2.78401]
[1732901801607,2.83518882,3592.4,3591.7,1.0361]
[1732901801791,2.83518882,3592.4,3591.8,2.78407]
[1732901801990,3.39823889,3592.4,3591.8,2.78407]
[1732901802313,3.39823889,3592.4,3591.9,2.78403]
[1732901802532,0.61457889,3592.4,3591.9,2.78403]
[1732901802693,0.61457889,3592.4,3591.8,0.55]
[1732901802891,0.61457889,3592.4,3592.0,2.7839]
[1732901804095,0.61457889,3592.4,3591.8,3.5308734]
[1732901804283,3.39823889,3592.4,3591.9,2.78404]
[1732901804818,2.78378,3592.3,3591.7,3.82029]
[1732901805117,0.05119277,3592.2,3591.4,2.78437]
[1732901805324,0.05119277,3592.2,3591.5,2.78434]
[1732901805325,2.78395,3592.1,3591.5,2.78434]
[1732901805524,0.05104417,3592.1,3591.3,3.81179]
[1732901805821,2.78394,3592.1,3591.3,3.81179]
[1732901805994,0.05082457,3592.0,3591.5,2.7843]
[1732901806995,0.54520998,3591.6,3591.5,2.7843]
[1732901807383,0.59586844,3591.6,3591.5,2.7843]
[1732901808678,0.59285572,3591.6,3591.5,2.7843]
[1732901809024,0.59285572,3591.6,3591.1,2.78464]
[1732901809330,0.59285572,3591.6,3591.2,2.78457]
[1732901809719,0.59285572,3591.6,3591.0,0.55779831]
[1732901810158,3.37712572,3591.6,3590.9,2.78479]
[1732901810322,2.78437,3591.5,3590.9,2.78479]
[1732901810524,2.78437,3591.5,3591.0,2.78473]
[1732901810716,0.05064956,3591.4,3591.0,2.78473]
[1732901811413,0.05064956,3591.4,3590.9,2.78479]
[1732901811751,2.78438,3591.5,3590.9,2.78479]
[1732901811946,0.05042023,3591.3,3590.9,2.78479]
[1732901812139,3.32647726,3591.6,3591.0,2.78467]
[1732901812341,0.05041582,3591.2,3590.8,3.72723]
[1732901812537,0.54219726,3591.6,3591.0,2.78469]
[1732901812741,0.05029715,3591.1,3591.0,2.78469]
[1732901812919,0.54219726,3591.6,3591.0,0.55]
[1732901813290,0.54219726,3591.6,3590.7,2.79321313]
[1732901813291,0.54219726,3591.6,3591.5,3.69435]
[1732901813555,0.54219726,3591.6,3591.5,4.24435]
[1732901814119,0.54219726,3591.6,3591.5,2.78435]
[1732901814956,0.54219726,3591.6,3591.5,3.33435]
[1732901815132,0.54219726,3591.6,3591.5,2.78435]
[1732901816054,0.59135356,3591.6,3591.5,3.434618]
[1732901816713,0.54219726,3591.6,3591.5,3.434618]
[1732901817325,0.54219726,3591.6,3591.5,3.69391012]
[1732901818549,3.0,3592.4,3591.8,2.78404]
[1732901818755,3.0,3592.4,3591.9,2.78401]
[1732901819271,0.04956185,3592.3,3591.9,2.78401]
[1732901819626,3.04956185,3592.3,3591.8,2.78408]
[1732901819865,0.04956185,3592.3,3592.2,2.7838]
[1732901820227,0.04956185,3592.3,3591.6,2.78426]
[1732901820228,2.78384,3592.2,3591.4,0.8962]
[1732901820549,2.83194494,3592.1,3591.5,2.78435]
[1732901820755,2.83194494,3592.1,3591.2,2.78458]
[1732901821076,2.78425,3591.7,3591.1,2.78462]
[1732901821225,2.78427,3591.7,3591.0,2.78472]
[1732901821546,0.04757968,3591.6,3591.0,2.78472]
[1732901821741,0.04757968,3591.6,3591.2,2.78456]
[1732901821927,0.54893113,3591.6,3591.2,2.78453]
[1732901822132,0.0474287,3591.5,3591.2,2.78453]
[1732901822529,0.0474287,3591.5,3591.4,2.78442]
[1732901823192,0.0474287,3591.5,3591.0,2.7847]
[1732901823372,0.0474287,3591.5,3590.3,0.2778]
[1732901823373,2.78455,3591.3,3590.5,2.78508]
[1732901823576,2.78455,3591.3,3590.6,2.78499]
[1732901823776,0.04731639,3591.2,3590.7,2.78496]
[1732901823946,2.78474,3591.0,3590.2,2.78536]
[1732901824147,2.78423,3591.7,3590.0,2.78546]
[1732901824148,2.78497,3590.8,3590.0,2.78546]
[1732901824353,2.78497,3590.8,3589.8,2.78567]
[1732901824354,3.04609949,3590.9,3589.7,0.9221]
[1732901824566,0.04617232,3590.7,3590.6,2.78504]
[1732901824768,0.04703534,3590.8,3590.6,2.78504]
[1732901824934,3.0,3591.2,3590.7,2.78496]
[1732901825284,2.78406,3591.9,3591.1,2.7846]
[1732901825434,2.78371,3592.4,3591.5,2.78434]
[1732901825640,0.1,3593.3,3591.5,2.78434]
[1732901825641,2.78373,3592.3,3591.6,2.78422]
[1732901825833,4.0,3591.7,3591.6,2.78422]
[1732901826431,0.54394517,3592.0,3591.6,1.464956]
[1732901826684,4.03820748,3593.5,3592.2,2.78378]
[1732901826685,3.89718,3593.5,3592.2,2.78378]
[1732901826841,4.0,3592.3,3592.2,2.78378]
[1732901827241,4.04636462,3592.3,3592.2,2.78378]
[1732901827441,0.04636462,3592.3,3592.2,2.78378]
[1732901827641,2.78303,3593.2,3592.4,2.78358]
[1732901827867,3.0,3593.1,3592.2,2.78375]
[1732901828079,3.0,3593.0,3592.2,2.78375]
[1732901828361,3.0,3593.0,3592.4,2.7836]
[1732901828499,0.55553388,3592.5,3592.4,2.7836]
[1732901828699,2.78298,3593.3,3592.4,2.7836]
[1732901828942,2.78241,3594.0,3592.3,0.891]
[1732901829095,3.32686373,3592.7,3592.3,0.55]
[1732901829295,3.32686373,3592.7,3591.6,0.556856]
[1732901829296,2.78358,3592.5,3591.8,2.78406]
[1732901829499,3.32686373,3592.7,3591.6,3.33427]
[1732901829500,0.54344373,3592.7,3591.6,2.78427]
[1732901829751,5.56784,3592.1,3591.5,2.78434]
[1732901830036,2.78386,3592.2,3591.5,2.78433]
[1732901830411,2.78386,3592.2,3591.4,2.78435]
[1732901830715,2.78386,3592.2,3591.6,2.78426]
[1732901830918,0.04610175,3592.1,3591.4,2.78438]
[1732901831117,0.04610175,3592.1,3591.6,2.78427]
[1732901831318,2.83004175,3592.1,3591.4,2.78438]
[1732901831997,2.83004175,3592.1,3591.5,2.78434]
[1732901833013,0.04610175,3592.1,3591.3,3.33443]
[1732901833345,2.78386,3592.2,3591.4,2.78441]
[1732901833504,2.7839,3592.1,3591.4,2.78441]
[1732901833700,0.56976199,3591.7,3591.4,2.78441]
[1732901834113,0.04584459,3591.6,3591.4,2.78441]
[1732901834441,0.04584459,3591.6,3591.5,2.78435]
[1732901836156,0.04584459,3591.6,3591.4,2.78441]
[1732901836300,0.04584459,3591.6,3591.2,2.78457]
[1732901836499,0.04584459,3591.6,3591.2,2.78456]
[1732901836704,0.04584459,3591.6,3591.3,2.7845]
[1732901836948,0.04584459,3591.6,3591.1,2.78464]
[1732901837104,0.04584459,3591.6,3590.8,0.8697]
[1732901837105,0.04584459,3591.6,3591.0,2.78471]
[1732901837599,2.7844,3591.5,3590.8,2.78483]
[1732901837804,2.7844,3591.5,3590.9,2.78479]
[1732901838131,0.04562168,3591.4,3591.0,2.78472]
[1732901838519,2.7844,3591.5,3590.8,2.78483]
[1732901838856,0.04568825,3591.3,3590.8,2.78484]
[1732901839142,0.04565374,3591.2,3591.0,2.78473]
[1732901839346,0.04565374,3591.2,3590.9,2.78481]
[1732901839506,2.78436,3591.5,3590.9,2.78481]
[1732901839905,0.04570767,3591.4,3590.9,2.78481]
[1732901840226,0.04570767,3591.4,3590.5,0.8697]
[1732901840423,0.5707377,3591.1,3590.8,2.78489]
[1732901840807,0.04548872,3591.0,3590.8,2.78489]
[1732901841207,0.04548872,3591.0,3590.9,2.78481]
[1732901842826,0.04548872,3591.0,3590.8,2.78483]
[1732901844422,0.04548872,3591.0,3590.9,2.78481]
[1732901846855,0.04548872,3591.0,3590.6,0.55]
[1732901847057,3.0,3591.8,3590.2,0.8267]
[1732901847259,3.0,3591.8,3589.5,0.8267]
[1732901847260,2.78497,3590.7,3589.5,0.8267]
[1732901847413,2.78517,3590.5,3589.9,2.78554]
[1732901847813,0.04312911,3590.4,3590.0,2.7855]
[1732901848046,0.04312911,3590.4,3589.7,2.78573]
[1732901848360,2.82831962,3590.3,3589.2,0.8193]
[1732901848662,3.04303962,3590.3,3589.2,1.179853]
[1732901848820,3.04303962,3590.3,3589.7,2.78571]
[1732901849163,0.04303962,3590.3,3590.0,0.8193]
[1732901849346,0.04303962,3590.3,3589.9,2.78557]